bitfinex/quotes_ETHUSD_20260119
["timestamp","ask_amount","ask_price","bid_price","bid_amount"]
[1768825424098,6.20135318,3226.6,3225.7,0.97845584]
[1768825425422,0.0028016,3226.6,3225.9,0.97845584]
[1768825425724,0.0028016,3226.6,3226.1,0.97845584]
[1768825426829,0.0028016,3226.6,3226.3,0.97845584]
[1768825427121,0.002,3226.8,3226.3,0.97845584]
[1768825432134,0.002,3226.8,3226.4,1.48845584]
[1768825434637,0.002,3226.8,3226.6,0.001]
[1768825435334,0.93027307,3226.8,3226.6,0.001]
[1768825437033,4.02940059,3226.8,3226.6,0.001]
[1768825438240,4.02933207,3226.8,3226.6,0.001]
[1768825442544,3.101059,3226.8,3226.6,0.001]
[1768825442847,4.02933207,3226.8,3226.6,0.001]
[1768825443050,0.92827307,3226.7,3226.6,0.001]
[1768825443617,0.92827307,3226.7,3226.3,0.51]
[1768825443941,0.92827307,3226.7,3226.1,0.51]
[1768825444246,0.92827307,3226.7,3226.0,1.49031829]
[1768825444619,0.92827307,3226.5,3225.9,0.51]
[1768825445019,0.92827307,3226.5,3225.8,0.98031829]
[1768825446329,0.92827307,3226.5,3225.7,1.49031829]
[1768825446841,0.92827307,3226.3,3226.1,0.001]
[1768825447041,0.92827307,3226.1,3225.7,0.51]
[1768825448338,0.92827307,3226.3,3225.7,1.49031829]
[1768825449157,0.92827307,3226.1,3225.7,0.51]
[1768825449335,0.92827307,3226.1,3225.5,1.49031829]
[1768825449526,0.92827307,3226.1,3225.6,0.98031829]
[1768825450157,3.09962184,3226.2,3225.6,0.98031829]
[1768825450323,4.02789491,3226.2,3225.6,0.98031829]
[1768825450828,0.92827307,3226.2,3225.6,0.98031829]
[1768825451354,4.02796198,3226.2,3225.6,0.98031829]
[1768825454970,4.02792419,3226.2,3225.6,0.98031829]
[1768825456967,7.12757531,3226.2,3225.6,0.98031829]
[1768825457463,0.92827307,3226.1,3225.6,0.98031829]
[1768825457663,0.92827307,3226.1,3225.5,1.49031829]
[1768825458143,0.92827307,3226.1,3225.5,0.98031829]
[1768825458338,0.92827307,3226.1,3225.5,1.49031829]
[1768825458542,0.92827307,3226.1,3225.9,0.001]
[1768825458739,0.92827307,3226.0,3225.9,0.001]
[1768825459446,4.02811429,3226.0,3225.5,1.49031829]
[1768825461666,4.02811429,3226.0,3225.6,0.98031829]
[1768825463271,0.94479993,3225.9,3225.5,0.51]
[1768825463773,0.002,3226.2,3225.6,0.98768663]
[1768825464643,0.94479993,3226.1,3225.6,0.98768663]
[1768825465357,7.14431901,3226.1,3225.6,0.98768663]
[1768825465562,4.04455947,3226.1,3225.6,0.98768663]
[1768825469846,0.94479993,3226.0,3225.6,0.98768663]
[1768825470070,0.94679993,3226.2,3225.6,0.98768663]
[1768825470579,0.94679993,3226.2,3225.8,0.001]
[1768825470973,0.94679993,3226.2,3225.2,0.98768663]
[1768825471168,0.511,3226.3,3225.3,0.98768663]
[1768825471340,0.20120257,3226.3,3225.2,0.98768663]
[1768825471680,0.34000528,3226.3,3225.2,0.98768663]
[1768825471878,0.13880271,3226.2,3225.2,0.98768663]
[1768825472195,6.19943584,3226.1,3225.2,0.98768663]
[1768825472543,6.33823855,3226.1,3225.2,0.98768663]
[1768825474276,0.13880271,3226.0,3225.2,0.98768663]
[1768825474666,6.33804639,3226.2,3225.2,0.98768663]
[1768825475282,0.13880271,3226.1,3225.2,0.98768663]
[1768825476473,3.23861672,3226.0,3225.3,0.98768663]
[1768825477148,6.33843073,3226.0,3225.3,0.98768663]
[1768825477353,3.23861672,3226.0,3225.3,0.98768663]
[1768825477652,6.33843073,3226.0,3225.3,0.98768663]
[1768825480893,0.13880271,3225.9,3225.3,0.98768663]
[1768825481100,0.13880271,3225.7,3225.1,0.9569728]
[1768825481957,0.13880271,3225.7,3225.1,0.001]
[1768825482684,3.10019841,3225.6,3225.5,0.001]
[1768825482988,0.13880271,3225.5,3225.1,0.001]
[1768825483588,0.13880271,3225.5,3224.9,0.000802]
[1768825484388,0.96954267,3225.3,3224.4,1.4659728]
[1768825484593,0.96954267,3225.1,3224.4,0.51]
[1768825484888,0.96954267,3225.1,3224.4,1.4659728]
[1768825485785,0.96954267,3225.1,3224.5,0.9559728]
[1768825486769,7.17109305,3225.0,3224.5,0.9559728]
[1768825486964,4.07031786,3225.0,3224.5,0.9559728]
[1768825494606,0.98638261,3224.9,3224.8,0.001]
[1768825494781,0.98638261,3224.9,3224.4,0.51]
[1768825495304,0.98638261,3224.9,3224.3,0.00180104]
[1768825495694,0.98638261,3224.9,3224.3,0.98422398]
[1768825496607,4.0872654,3224.9,3224.3,0.98422398]
[1768825496980,0.98638261,3224.8,3224.3,0.98422398]
[1768825498915,4.08744627,3224.7,3224.3,0.98422398]
[1768825499216,4.08744627,3224.7,3224.3,0.00180104]
[1768825499793,0.98638261,3224.7,3224.3,0.00180104]
[1768825501805,0.98638261,3224.6,3224.3,0.00180104]
[1768825502001,3.10108982,3224.7,3224.3,0.00180104]
[1768825502225,3.1003427,3225.5,3224.7,0.98242294]
[1768825502521,0.98638261,3225.4,3224.4,0.511]
[1768825502841,0.98638261,3225.4,3224.5,0.98242294]
[1768825503187,0.98638261,3225.4,3224.7,0.98242294]
[1768825503394,0.98638261,3225.6,3224.7,0.98242294]
[1768825503610,3.10014639,3225.7,3224.8,0.98242294]
[1768825503815,3.10001922,3225.8,3225.0,0.98242294]
[1768825504328,4.08640183,3225.8,3225.0,0.98242294]
[1768825505124,0.98638261,3225.7,3225.0,0.98242294]
[1768825506038,4.59733355,3225.9,3225.0,0.98242294]
[1768825506326,0.002,3225.4,3225.0,0.98242294]
[1768825506635,0.002,3225.4,3225.2,0.98242294]
[1768825511323,0.002,3225.4,3225.0,0.98242294]
[1768825518415,0.98838261,3225.4,3225.0,0.98242294]
[1768825519349,0.002,3225.4,3225.0,0.98242294]
[1768825530156,0.002,3225.1,3225.0,0.98242294]
[1768825536364,0.002,3225.1,3224.9,0.511]
[1768825537760,0.9264284,3225.1,3224.6,0.94697639]
[1768825537969,0.9264284,3225.1,3224.6,0.511]
[1768825538136,0.9244284,3225.0,3224.6,0.511]
[1768825538340,0.9244284,3224.9,3224.6,0.511]
[1768825538644,0.9244284,3224.9,3224.2,1.45897639]
[1768825539263,0.9244284,3224.9,3224.3,0.96796936]
[1768825539434,0.97093314,3225.1,3224.4,0.96616832]
[1768825539628,0.97093314,3225.1,3224.4,6.7396989]
[1768825539949,0.97093314,3225.1,3224.6,0.96616832]
[1768825540634,0.002,3225.1,3224.6,0.96616832]
[1768825541337,0.002,3225.4,3224.8,0.96616832]
[1768825541537,3.10243597,3225.4,3224.8,0.96616832]
[1768825541939,4.07136911,3225.4,3224.8,0.96616832]
[1768825542770,0.96893314,3225.3,3224.8,0.96616832]
[1768825543650,0.002,3225.1,3224.8,0.96616832]
[1768825547557,0.002,3225.1,3224.6,1.47816832]
[1768825547741,0.002,3225.1,3224.6,2.20333821]
[1768825547938,0.97093314,3225.1,3224.6,2.20333821]
[1768825548683,0.97093314,3225.1,3224.6,1.23716989]
[1768825548846,0.97093314,3225.1,3224.6,0.512]
[1768825550069,0.96893314,3225.0,3224.6,0.512]
[1768825553577,0.94529354,3224.9,3224.6,0.512]
[1768825559789,0.94529354,3224.8,3224.6,0.001]
[1768825559970,0.94529354,3224.6,3224.3,0.00180104]
[1768825560695,0.94529354,3224.6,3224.2,0.001]
[1768825561912,0.94529354,3224.4,3224.0,0.51180112]
[1768825562821,0.94529354,3224.3,3224.0,0.51180112]
[1768825563782,0.94529354,3224.6,3224.1,0.97731466]
[1768825564013,0.94529354,3224.6,3224.0,0.51180112]
[1768825564220,0.94529354,3224.6,3224.0,1.48911578]
[1768825567723,0.00080104,3224.7,3224.1,0.97731466]
[1768825568024,0.00080104,3224.7,3224.3,0.97831466]
[1768825568625,0.94609458,3224.7,3224.3,0.97831466]
[1768825569721,0.94609458,3224.7,3224.3,0.001]
[1768825570024,4.81307295,3224.7,3224.3,0.001]
[1768825573623,0.00080104,3224.7,3224.4,0.97731466]
[1768825577434,3.1026922,3225.1,3224.5,0.97731466]
[1768825578720,4.04798574,3225.1,3224.5,0.97731466]
[1768825582129,0.94529354,3225.0,3224.4,0.511]
[1768825583032,0.94529354,3225.0,3224.4,1.48297701]
[1768825585342,4.07843542,3225.0,3224.4,1.48297701]
[1768825585838,0.97764347,3224.9,3224.4,1.48297701]
[1768825589744,0.97764347,3224.9,3224.3,0.00180112]
[1768825589745,0.97764347,3224.7,3224.3,0.00180112]
[1768825590315,0.511,3224.7,3224.3,0.97377813]
[1768825591753,4.58972455,3224.7,3224.3,0.97377813]
[1768825591954,1.48864347,3224.7,3224.3,0.97377813]
[1768825593349,4.58972597,3224.7,3224.3,0.97377813]
[1768825597060,4.07872597,3224.7,3224.3,0.97377813]
[1768825597867,0.97764347,3224.6,3224.0,0.00080112]
[1768825598033,0.97764347,3224.6,3224.0,0.97277813]
[1768825599233,0.00080112,3224.7,3224.0,0.97277813]
[1768825599439,0.00080112,3224.7,3224.2,0.97197701]
[1768825601863,0.90402405,3224.7,3224.2,0.97197701]
[1768825602730,0.90402405,3224.7,3224.3,0.001]
[1768825603176,0.002,3224.4,3224.3,0.001]
[1768825609380,0.00280112,3224.7,3224.4,0.95344141]
[1768825609770,0.002,3224.8,3224.4,0.95344141]
[1768825610283,3.10277497,3225.1,3224.4,0.95344141]
[1768825610284,0.90522293,3225.1,3224.5,0.95344141]
[1768825612856,0.002,3225.1,3224.5,0.95344141]
[1768825614594,3.10269658,3225.1,3224.5,0.95344141]
[1768825614762,0.90890018,3225.1,3224.5,0.95344141]
[1768825615559,0.90890018,3225.1,3224.8,0.001]
[1768825616302,0.002,3225.1,3224.8,0.001]
[1768825619980,0.90890018,3225.1,3224.8,0.001]
[1768825621394,0.002,3225.1,3224.8,0.97411592]
[1768825622069,3.10243928,3225.4,3224.9,0.97311592]
[1768825622070,0.002,3225.4,3224.9,0.97311592]
[1768825622396,0.513,3225.4,3224.9,0.97311592]
[1768825626996,0.002,3225.4,3224.9,0.97311592]
[1768825627204,0.002,3225.4,3225.0,0.97311592]
[1768825627602,0.002,3225.1,3225.0,0.97311592]
[1768825629496,0.002,3225.1,3224.9,0.97311592]
[1768825630319,0.002,3225.1,3224.8,0.001]
[1768825631016,0.002,3225.1,3224.8,0.97411592]
[1768825631991,0.002,3225.1,3224.8,0.001]
[1768825632387,0.002,3225.1,3224.8,0.97411592]
[1768825633641,0.002,3225.1,3224.8,0.001]
[1768825633808,0.31026186,3225.0,3224.3,0.0018012]
[1768825634010,0.90690018,3224.9,3224.3,0.97491712]
[1768825635325,0.90690018,3224.8,3224.3,0.97491712]
[1768825636424,0.90690018,3224.8,3224.3,0.0018012]
[1768825637060,0.90690018,3224.8,3224.3,0.97491712]
[1768825638146,4.00786962,3224.8,3224.3,0.97491712]
[1768825638445,0.90690018,3224.7,3224.3,0.0018012]
[1768825639261,4.00796384,3224.7,3224.6,0.001]
[1768825639551,0.90690018,3224.5,3224.0,0.00080112]
[1768825640132,0.90690018,3224.3,3223.9,0.001]
[1768825641520,3.10151557,3224.3,3223.9,0.001]
[1768825641718,0.90690018,3224.1,3223.6,0.00180072]
[1768825643648,0.96911722,3223.9,3223.6,0.00180072]
[1768825645249,3.10164971,3224.1,3223.6,1.00104362]
[1768825645250,0.96911722,3224.1,3223.6,1.00104362]
[1768825645436,3.10148187,3224.3,3223.7,0.9992429]
[1768825645744,0.00080112,3224.4,3223.9,0.9992429]
[1768825646146,0.96911722,3224.6,3224.1,0.9992429]
[1768825646525,0.0008012,3224.7,3224.1,0.9992429]
[1768825646741,0.96911722,3224.6,3224.1,0.9992429]
[1768825646921,0.96991842,3224.7,3224.1,0.9992429]
[1768825647941,0.96911722,3224.5,3224.1,0.9992429]
[1768825648519,0.96911722,3224.5,3224.0,0.0008012]
[1768825649745,0.96911722,3224.3,3224.0,0.0008012]
[1768825651319,0.002,3224.2,3224.0,0.0008012]
[1768825651519,0.97111722,3224.2,3224.0,0.0008012]
[1768825651946,3.10355982,3224.2,3224.0,0.0008012]
[1768825653140,0.002,3224.2,3224.0,0.0008012]
[1768825653340,4.07267245,3224.2,3224.0,0.0008012]
[1768825653665,0.97111722,3224.2,3224.0,0.0008012]
[1768825654353,4.07266868,3224.2,3224.0,0.0008012]
[1768825657360,0.96911722,3224.1,3224.0,0.0008012]
[1768825657720,3.87205423,3224.2,3224.0,0.0008012]
[1768825658150,4.84117145,3224.2,3224.0,0.0008012]
[1768825658936,7.94272291,3224.2,3224.0,0.0008012]
[1768825659251,4.84117145,3224.2,3223.7,0.9992429]
[1768825660456,4.84117145,3224.2,3223.6,0.00180072]
[1768825660457,0.96529104,3224.1,3223.6,0.98956845]
[1768825660623,3.87205423,3224.2,3223.6,0.98956845]
[1768825660823,4.83734527,3224.2,3223.6,0.98956845]
[1768825662322,4.0688425,3224.2,3223.6,0.98956845]
[1768825662724,0.96529104,3224.1,3223.6,0.00180072]
[1768825663633,0.96529104,3224.1,3224.0,0.001]
[1768825663930,0.96529104,3224.1,3223.6,0.00180072]
[1768825664655,0.96529104,3223.9,3223.6,0.00180072]
[1768825665466,0.96529104,3223.8,3223.6,0.00180072]
[1768825665827,0.7168765,3223.9,3223.6,0.98956845]
[1768825666030,6.20347394,3224.0,3223.6,0.98956845]
[1768825666226,6.20347394,3224.0,3223.4,0.98776773]
[1768825666452,6.20427466,3224.0,3223.4,0.98776773]
[1768825666657,7.1695657,3224.0,3223.4,0.98776773]
[1768825668558,0.96529104,3223.9,3223.4,0.98776773]
[1768825668764,3.1019294,3223.8,3223.4,0.98776773]
[1768825670577,4.06716809,3223.9,3223.4,0.98776773]
[1768825671157,3.10257844,3224.0,3223.4,0.98776773]
[1768825673467,0.00080072,3224.0,3223.4,0.98776773]
[1768825674650,4.579862,3224.2,3223.7,0.96302498]
[1768825674651,0.002,3224.2,3223.7,0.96302498]
[1768825674852,0.0008012,3224.4,3224.0,0.96302498]
[1768825675251,0.0008012,3224.4,3223.7,0.96302498]
[1768825675252,0.96111999,3224.3,3223.7,0.96302498]
[1768825675562,0.96111999,3224.3,3223.6,0.96382578]
[1768825675563,3.10154456,3224.2,3223.6,0.96382578]
[1768825676336,0.96111999,3224.3,3223.6,0.96382578]
[1768825676539,0.96111999,3224.3,3223.7,0.96302498]
[1768825676743,4.06257767,3224.3,3223.7,0.96302498]
[1768825677347,0.0008012,3224.4,3223.7,0.96302498]
[1768825677547,0.0008012,3224.4,3223.8,0.96302498]
[1768825680365,0.0008012,3224.7,3224.2,0.96302498]
[1768825680566,3.10187122,3224.7,3224.2,0.96302498]
[1768825681453,4.06299121,3224.7,3224.2,0.96302498]
[1768825681971,0.96192119,3224.7,3224.2,0.96302498]
[1768825682366,4.06298664,3224.7,3224.2,0.96302498]
[1768825683783,0.0008012,3224.7,3224.2,0.96302498]
[1768825684466,0.0008012,3224.7,3224.3,0.96302498]
[1768825685879,0.96111999,3225.0,3224.3,0.96302498]
[1768825686083,0.96111999,3225.0,3224.3,0.96382626]
[1768825686453,0.001,3224.4,3224.3,0.96382626]
[1768825686653,0.96111999,3225.0,3224.4,0.96302498]
[1768825687582,4.06190608,3225.0,3224.4,0.96302498]
[1768825688103,0.002,3225.4,3225.1,0.96302498]
[1768825688288,0.002,3225.8,3225.2,0.96302498]
[1768825688583,0.002,3225.8,3225.3,0.96302498]
[1768825698396,0.002,3225.5,3225.3,0.96302498]
[1768825698704,0.002,3225.8,3225.2,0.96302498]
[1768825698884,0.002,3225.8,3225.1,0.511]
[1768825699092,0.002,3225.8,3225.1,1.47402498]
[1768825699382,0.002,3225.8,3225.1,1.54583644]
[1768825699568,0.002,3225.8,3225.2,0.96302498]
[1768825700201,0.96311999,3225.8,3225.2,0.96302498]
[1768825703990,0.002,3225.8,3225.2,0.96302498]
[1768825707002,0.002,3225.8,3225.2,4.0635932]
[1768825707192,0.002,3225.8,3225.4,0.99085286]
[1768825708709,0.002,3226.0,3225.7,0.99085286]
[1768825710618,3.09964915,3226.2,3225.6,0.99085286]
[1768825711307,0.511802,3226.6,3226.1,0.99085286]
[1768825711308,0.000802,3226.6,3226.1,0.99085286]
[1768825711601,0.002,3227.1,3226.5,0.99085286]
[1768825711781,0.002,3227.1,3226.7,0.99085286]
[1768825719709,0.93984925,3227.1,3226.7,0.99085286]
[1768825721323,4.03865118,3227.1,3226.6,0.511]
[1768825721687,4.03865118,3227.1,3226.6,1.46953346]
[1768825722189,4.03865118,3227.1,3226.6,0.511]
[1768825722190,0.93984925,3227.0,3226.6,0.511]
[1768825722800,0.002,3227.0,3226.6,1.46953346]
[1768825724723,0.93984925,3227.0,3226.6,0.511]
[1768825725925,0.93984925,3227.0,3226.6,1.46953346]
[1768825726318,0.002,3227.0,3226.6,1.46953346]
[1768825726922,0.93984925,3227.0,3226.2,0.95853346]
[1768825727126,0.93784925,3226.9,3226.3,1.46853346]
[1768825727327,0.93784925,3226.9,3226.4,0.51]
[1768825728732,0.93784925,3226.7,3226.3,0.51]
[1768825729302,0.93984925,3227.0,3226.4,0.95853346]
[1768825729799,0.93784925,3226.9,3226.3,1.46853346]
[1768825730005,0.93984925,3227.0,3226.4,0.95853346]
[1768825730213,0.002,3227.1,3226.5,0.95853346]
[1768825731428,0.002,3227.1,3226.7,0.95853346]
[1768825731631,0.002,3227.1,3226.5,0.95853346]
[1768825731632,0.93984925,3227.1,3226.5,0.95853346]
[1768825733309,4.03863679,3227.1,3226.5,0.95853346]
[1768825734031,0.93984925,3227.1,3226.8,0.001]
[1768825734216,4.03861745,3227.1,3226.8,0.001]
[1768825734400,3.1007682,3227.1,3226.8,0.001]
[1768825734606,4.03297987,3227.1,3226.8,0.001]
[1768825735037,0.93421167,3227.1,3226.8,0.001]
[1768825735424,4.03300445,3227.1,3226.8,0.001]
[1768825736027,0.93221167,3227.0,3226.8,0.001]
[1768825741016,0.002,3227.1,3226.9,0.97939303]
[1768825741319,0.93301287,3227.6,3227.0,0.97939303]
[1768825741320,0.93221167,3227.5,3227.0,0.97939303]
[1768825741520,0.93221167,3227.4,3226.8,1.49039303]
[1768825741714,0.93221167,3227.4,3226.8,2.52587331]
[1768825741939,0.93221167,3227.4,3226.8,0.511]
[1768825742317,0.93221167,3227.4,3226.8,0.001]
[1768825743838,0.93221167,3227.2,3226.8,0.001]
[1768825745839,0.002,3227.1,3226.8,0.98039303]
[1768825746425,0.93421167,3227.1,3226.8,0.001]
[1768825747641,0.93221167,3227.0,3226.7,0.51]
[1768825747982,0.93221167,3226.9,3226.1,0.97939303]
[1768825748240,0.93221167,3226.9,3226.2,0.51]
[1768825748839,0.93221167,3226.9,3226.2,1.48939303]
[1768825749618,0.93221167,3226.9,3226.2,0.97939303]
[1768825749818,0.93221167,3226.7,3226.2,0.97939303]
[1768825750239,0.93221167,3226.7,3225.8,0.97939303]
[1768825751441,0.93221167,3226.7,3225.7,0.51]
[1768825751750,9.29713647,3226.8,3225.7,0.51]
[1768825751751,0.93221167,3226.6,3225.7,0.51]
[1768825752654,0.93221167,3226.4,3225.7,1.48939303]
[1768825753246,0.93221167,3226.3,3225.7,0.51]
[1768825754520,0.93221167,3226.1,3225.7,0.51]
[1768825754832,0.93221167,3226.1,3225.5,0.0018016]
[1768825755020,0.93221167,3226.1,3225.5,0.98119463]
[1768825756951,0.93221167,3226.0,3225.5,0.98119463]
[1768825757665,0.85941082,3226.0,3225.5,0.98119463]
[1768825757839,0.93421167,3227.1,3226.1,0.97939303]
[1768825758159,0.002,3226.8,3226.1,0.97939303]
[1768825758343,0.002,3226.8,3226.0,0.001]
[1768825758344,0.93421167,3226.8,3226.0,0.001]
[1768825759048,0.93221167,3226.6,3226.0,0.001]
[1768825760156,0.93221167,3226.5,3226.0,0.001]
[1768825761061,0.93221167,3226.3,3225.5,0.0018016]
[1768825762726,0.93221167,3226.3,3225.5,0.94570933]
[1768825763346,0.98112031,3226.1,3225.5,0.94570933]
[1768825764730,0.511,3226.1,3225.5,0.0018016]
[1768825764931,0.98112031,3225.9,3225.5,0.0018016]
[1768825765552,0.98112031,3225.7,3225.5,0.0018016]
[1768825767857,4.08122374,3225.7,3225.5,0.0018016]
[1768825768861,0.98112031,3225.7,3225.5,0.0018016]
[1768825769163,4.08125561,3225.7,3225.5,0.0018016]
[1768825769663,0.98112031,3225.7,3225.5,0.0018016]
[1768825771632,4.08123247,3225.7,3225.5,0.0018016]
[1768825773655,0.98112031,3225.7,3225.5,0.0018016]
[1768825774165,0.67102437,3226.0,3225.5,0.0018016]
[1768825774166,4.08107142,3225.9,3225.5,0.0018016]
[1768825777668,0.002,3226.5,3226.0,0.94390773]
[1768825777841,0.002,3226.5,3226.0,0.86771721]
[1768825778439,0.002,3226.8,3226.0,0.86771721]
[1768825778639,0.002,3226.8,3226.1,0.94390773]
[1768825778840,0.002,3226.8,3226.3,0.94390773]
[1768825779370,0.002,3227.1,3226.4,0.94390773]
[1768825779747,0.002,3227.1,3226.6,0.91576137]
[1768825783975,0.002,3226.8,3226.6,0.91576137]
[1768825784170,0.002,3227.1,3226.6,0.91576137]
[1768825784355,0.002,3227.1,3226.7,0.91576137]
[1768825785969,0.002,3227.4,3226.6,0.91576137]
[1768825787947,0.9588909,3227.4,3226.6,0.91576137]
[1768825789391,0.002,3227.4,3226.7,0.91576137]
[1768825789560,4.05738267,3227.4,3226.7,0.91576137]
[1768825789946,0.9588909,3227.4,3226.7,0.91576137]
[1768825790386,0.9588909,3227.4,3226.9,0.91576137]
[1768825791564,0.9568909,3227.3,3226.6,0.91576137]
[1768825792677,3.10049032,3227.4,3226.6,0.91576137]
[1768825793473,0.95457151,3227.3,3226.6,0.91576137]
[1768825793982,4.05316491,3227.3,3226.6,0.91576137]
[1768825795076,0.95457151,3227.3,3226.7,0.98132349]
[1768825795272,0.002,3227.4,3226.7,0.98132349]
[1768825795503,0.513,3227.4,3226.9,0.001]
[1768825795664,3.61150358,3227.4,3227.0,0.98132349]
[1768825795981,0.002,3227.1,3227.0,0.98132349]
[1768825797150,3.10050358,3227.4,3227.0,0.98132349]
[1768825799096,4.05507509,3227.4,3227.0,0.98132349]
[1768825799461,4.05507509,3227.4,3226.9,0.001]
[1768825799886,0.95457151,3227.3,3226.9,0.001]
[1768825800808,0.95457151,3227.3,3226.9,0.98232349]
[1768825800956,4.56607509,3227.4,3226.9,0.98232349]
[1768825802000,1.46757151,3227.4,3226.9,0.98232349]
[1768825802215,0.513,3227.4,3226.9,0.98232349]
[1768825802579,0.002,3227.4,3226.9,0.98232349]
[1768825802778,0.0008012,3227.6,3227.4,0.98132349]
[1768825804074,0.0008012,3227.6,3227.2,0.98132349]
[1768825806682,0.002,3227.8,3227.3,0.98132349]
[1768825807602,0.002,3227.6,3227.3,0.98132349]
[1768825807801,3.09779746,3228.1,3227.3,0.98132349]
[1768825808008,3.09779746,3228.1,3227.5,0.98132349]
[1768825809313,6.19559492,3228.1,3227.5,0.98132349]
[1768825809731,3.09779746,3228.1,3227.5,0.98132349]
[1768825811718,3.09852449,3228.2,3227.5,5.76332861]
[1768825811918,0.0008012,3228.2,3227.6,0.98132349]
[1768825812427,0.0008012,3228.2,3227.8,0.98132349]
[1768825812935,3.09851566,3228.2,3227.8,0.98132349]
[1768825815016,0.0008012,3228.2,3227.6,0.98132349]
[1768825818322,0.0008012,3228.2,3227.7,0.98132349]
[1768825820876,0.002,3227.9,3227.7,0.98132349]
[1768825821174,0.0028012,3228.2,3227.6,0.98132349]
[1768825821481,0.0028012,3228.2,3227.8,0.98132349]
[1768825821634,0.002,3228.4,3227.8,0.98132349]
[1768825821834,0.002,3228.4,3228.0,0.98132349]
[1768825822379,0.95657151,3228.4,3227.7,0.98132349]
[1768825823170,3.09760555,3228.3,3227.7,0.98132349]
[1768825825169,0.96439222,3228.3,3227.7,0.98132349]
[1768825827292,4.06203475,3228.3,3227.7,0.98132349]
[1768825827598,4.06203475,3228.3,3227.7,1.17135436]
[1768825832494,0.96439222,3228.3,3227.7,1.17135436]
[1768825832903,4.06200443,3228.3,3227.7,1.17135436]
[1768825833108,4.06200443,3228.3,3228.0,0.001]
[1768825833702,0.96439222,3228.3,3228.0,0.001]
[1768825835694,3.09955919,3228.4,3228.0,0.001]
[1768825835931,4.06395141,3228.4,3228.0,0.001]
[1768825838375,0.0008012,3228.5,3228.0,0.95784147]
[1768825838595,1.28207399,3231.1,3228.9,0.95684147]
[1768825838596,0.0008004,3229.8,3228.9,0.95684147]
[1768825838914,0.0008004,3229.8,3229.2,0.95684147]
[1768825839497,0.99114993,3229.8,3228.7,0.92306554]
[1768825839705,0.99114993,3229.8,3228.8,0.92306554]
[1768825839706,0.0008004,3229.8,3228.8,0.92306554]
[1768825839906,0.0008004,3229.8,3229.2,5.76332861]
[1768825840225,0.99114993,3230.1,3229.4,0.92306554]
[1768825840383,0.99034953,3230.0,3229.4,0.51]
[1768825841001,0.99034953,3230.0,3229.2,0.92306554]
[1768825841183,0.99034953,3230.0,3229.3,0.92306554]
[1768825843722,4.08632632,3230.0,3229.3,0.92306554]
[1768825844319,4.08632632,3230.0,3228.7,9.03797409]
[1768825844320,0.99034953,3229.9,3229.1,0.92306554]
[1768825844710,11.95528219,3230.0,3229.1,0.92306554]
[1768825844711,0.99234953,3229.7,3229.1,0.92306554]
[1768825844884,0.99034953,3229.5,3229.0,0.51]
[1768825845894,0.99034953,3229.5,3228.5,0.92306554]
[1768825846108,0.99034953,3229.3,3228.3,0.51]
[1768825846923,0.99034953,3229.1,3228.3,1.43306554]
[1768825847827,0.99034953,3229.1,3228.4,0.92306554]
[1768825848039,3.09635868,3229.6,3228.6,0.92306554]
[1768825848624,0.99034953,3229.6,3228.7,0.92306554]
[1768825848800,3.09645455,3229.5,3228.7,0.92306554]
[1768825848995,0.99034953,3229.6,3228.8,0.92306554]
[1768825849191,0.99034953,3229.6,3229.0,0.92306554]
[1768825849728,0.002,3229.7,3229.0,0.92306554]
[1768825850121,3.09827143,3229.7,3229.0,0.92306554]
[1768825850516,0.99034953,3229.6,3228.8,1.43306554]
[1768825850820,3.09641267,3229.6,3228.8,1.43306554]
[1768825851021,0.99034953,3229.5,3228.8,1.43306554]
[1768825851222,0.99034953,3229.5,3228.9,0.92306554]
[1768825851603,0.99034953,3229.5,3229.0,0.92306554]
[1768825852800,4.06826641,3229.6,3229.0,0.92306554]
[1768825853000,0.97189561,3229.5,3229.0,0.92306554]
[1768825853304,0.97189561,3229.5,3228.8,1.43438647]
[1768825853512,0.97189561,3229.5,3228.8,0.51]
[1768825853710,0.97189561,3229.4,3228.8,0.51]
[1768825854698,0.97189561,3229.4,3228.2,0.92438647]
[1768825854899,0.97189561,3229.2,3228.2,0.92438647]
[1768825855108,0.97189561,3229.2,3228.0,1.43538647]
[1768825855730,0.97189561,3229.2,3228.1,0.92518727]
[1768825855931,0.97189561,3229.0,3228.1,0.92518727]
[1768825856824,0.97189561,3228.8,3228.5,0.001]
[1768825857810,4.06887333,3229.0,3228.5,0.001]
[1768825858010,0.97189561,3228.9,3228.5,0.001]
[1768825858407,3.09697772,3229.0,3228.5,1.43538647]
[1768825858827,1.99807907,3229.1,3228.5,1.43538647]
[1768825858828,5.09495547,3229.1,3228.5,1.43538647]
[1768825859010,5.09495547,3229.1,3228.6,0.92438647]
[1768825859330,0.97189561,3229.0,3228.5,0.511]
[1768825861023,0.97189561,3228.9,3228.5,0.511]
[1768825861806,3.09686706,3229.1,3228.6,0.92438647]
[1768825862008,3.09678042,3229.2,3228.6,0.92438647]
[1768825862743,0.97189561,3229.1,3228.6,0.92438647]
[1768825863607,4.0687637,3229.1,3228.6,0.92438647]
[1768825863922,0.97189561,3229.1,3228.6,0.92438647]
[1768825864120,4.06874484,3229.1,3228.6,0.92438647]
[1768825864525,3.09684923,3229.1,3228.6,0.92438647]
[1768825864716,4.06844605,3229.4,3228.6,0.92438647]
[1768825865049,3.09674222,3229.2,3228.6,0.92438647]
[1768825865729,4.06863783,3229.2,3228.6,0.92438647]
[1768825867124,3.09674222,3229.2,3228.6,0.92438647]
[1768825867438,3.57519636,3229.3,3228.6,0.92438647]
[1768825868325,6.67188174,3229.3,3228.6,0.92438647]
[1768825868526,7.64377735,3229.3,3228.6,0.92438647]
[1768825868950,0.97189561,3229.2,3228.6,0.92438647]
[1768825869149,0.97189561,3229.2,3228.9,0.001]
[1768825869331,1.73627335,3229.1,3228.9,0.511]
[1768825869525,4.83316256,3229.1,3228.9,0.511]
[1768825869851,4.83316256,3229.1,3228.7,0.92438647]
[1768825870151,1.73627335,3229.1,3228.7,0.92438647]
[1768825870331,4.06825429,3229.6,3228.8,0.92438647]
[1768825870530,4.06825429,3229.6,3228.9,0.92438647]
[1768825870953,0.97189561,3229.5,3229.1,0.01577376]
[1768825871747,4.06844605,3229.4,3229.1,0.01577376]
[1768825872350,4.78493675,3229.4,3229.1,0.01577376]
[1768825872550,1.68838631,3229.4,3229.1,0.01577376]
[1768825872949,0.97189561,3229.4,3229.1,0.01577376]
[1768825873142,4.06827807,3229.6,3229.1,0.01577376]
[1768825873487,0.97189561,3229.5,3229.1,0.52577376]